bitfinex/quotes_BTCUSD_20230106
["timestamp","ask_amount","ask_price","bid_price","bid_amount"]
[1672994728610,2.552863,16817.0,16816.0,0.28761448]
[1672994728873,3.147499,16817.0,16816.0,0.28761448]
[1672994732805,3.009119,16817.0,16816.0,0.28761448]
[1672994733077,2.397454,16817.0,16816.0,0.28761448]
[1672994733557,3.31120348,16817.0,16816.0,0.28761448]
[1672994737282,3.31120348,16817.0,16816.0,0.28750393]
[1672994740069,3.31120348,16817.0,16816.0,0.27900393]
[1672994754121,2.397454,16817.0,16816.0,0.27900393]
[1672994757391,1.8618788,16817.0,16816.0,0.27900393]
[1672994758448,1.8618788,16817.0,16816.0,0.27893199]
[1672994762107,2.3969769,16817.0,16816.0,0.27893199]
[1672994762390,1.8618788,16817.0,16816.0,0.27893199]
[1672994763198,1.2672428,16817.0,16816.0,0.27893199]
[1672994763459,1.80249721,16817.0,16816.0,0.27893199]
[1672994764510,1.2672428,16817.0,16816.0,0.27893199]
[1672994766633,1.8618788,16817.0,16816.0,0.27893199]
[1672994769366,2.1706514,16817.0,16816.0,0.27893199]
[1672994769630,2.7823164,16817.0,16816.0,0.27893199]
[1672994770170,2.4735438,16817.0,16816.0,0.21330827]
[1672994770485,1.8618788,16817.0,16816.0,0.21330827]
[1672994770940,1.8618788,16817.0,16816.0,0.30374221]
[1672994775521,2.46434327,16817.0,16816.0,0.30374221]
[1672994776284,1.8618788,16817.0,16816.0,0.30374221]
[1672994776554,2.46434327,16817.0,16816.0,0.30374221]
[1672994776890,1.8618788,16817.0,16816.0,0.30374221]
[1672994778581,2.1706514,16817.0,16816.0,0.30374221]
[1672994778841,2.77311587,16817.0,16816.0,0.30374221]
[1672994779341,2.46434327,16817.0,16816.0,0.30374221]
[1672994780865,1.8618788,16817.0,16816.0,0.30374221]
[1672994781372,1.8618788,16817.0,16816.0,0.30368102]
[1672994781642,2.46434327,16817.0,16816.0,0.30368102]
[1672994782285,1.8618788,16817.0,16816.0,0.30368102]
[1672994782789,2.46434327,16817.0,16816.0,0.30368102]
[1672994783036,1.8618788,16817.0,16816.0,0.30368102]
[1672994789154,2.1706514,16817.0,16816.0,0.30368102]
[1672994789464,2.7823164,16817.0,16816.0,0.30368102]
[1672994790869,3.38478087,16817.0,16816.0,0.30368102]
[1672994794348,3.07600827,16817.0,16816.0,0.30368102]
[1672994796066,2.4735438,16817.0,16816.0,0.30368102]
[1672994796559,1.8618788,16817.0,16816.0,0.30368102]
[1672994798081,2.46434327,16817.0,16816.0,0.30368102]
[1672994800992,3.07600827,16817.0,16816.0,0.30368102]
[1672994801250,3.44594737,16817.0,16816.0,0.30368102]
[1672994804200,3.44594737,16817.0,16816.0,0.30359824]
[1672994806282,3.07600827,16817.0,16816.0,0.30359824]
[1672994806540,2.46434327,16817.0,16816.0,0.30359824]
[1672994808264,2.4735438,16817.0,16816.0,0.30359824]
[1672994808779,3.0758664,16817.0,16816.0,0.30359824]
[1672994809040,2.4735438,16817.0,16816.0,0.30359824]
[1672994809299,2.78323646,16817.0,16816.0,0.30359824]
[1672994809806,3.38549353,16817.0,16816.0,0.30359824]
[1672994810298,3.07570548,16817.0,16816.0,0.30359824]
[1672994814606,1.88160007,16817.0,16816.0,0.2509861]
[1672994814856,2.56196216,16817.0,16816.0,0.2509861]
[1672994815835,3.16414575,16817.0,16816.0,0.2509861]
[1672994816331,3.5428986,16817.0,16816.0,0.2509861]
[1672994818532,2.94071501,16817.0,16816.0,0.2509861]
[1672994820106,2.94071501,16817.0,16816.0,20.6577182]
[1672994820372,2.32905001,16817.0,16816.0,20.6577182]
[1672994824662,2.32905001,16817.0,16816.0,19.25124994]
[1672994824917,2.24838694,16817.0,16816.0,19.44796349]
[1672994827246,2.29816211,16817.0,16816.0,19.44796349]
[1672994832347,2.24838694,16817.0,16816.0,19.44796349]
[1672994848943,2.24838694,16817.0,16816.0,19.44788145]
[1672994849176,1.86963409,16817.0,16816.0,19.44788145]
[1672994873089,1.86963409,16817.0,16816.0,19.4477682]
[1672994882113,2.16963409,16817.0,16816.0,19.4477682]
[1672994882852,2.16953091,16817.0,16816.0,19.4477682]
[1672994884608,2.59620115,16817.0,16816.0,19.4477682]
[1672994885390,2.16953091,16817.0,16816.0,19.4477682]
[1672994889841,1.86953091,16817.0,16816.0,19.4477682]
[1672994891433,2.16953091,16817.0,16816.0,19.4477682]
[1672994891697,1.86953091,16817.0,16816.0,19.4477682]
[1672994891960,2.16953091,16817.0,16816.0,19.4477682]
[1672994892222,2.59620115,16817.0,16816.0,19.4477682]
[1672994892529,2.63184049,16817.0,16816.0,19.4477682]
[1672994897709,2.59620115,16817.0,16816.0,19.4477682]
[1672994899275,2.59620115,16817.0,16816.0,17.80674648]
[1672994899535,3.20786615,16817.0,16816.0,17.80674648]
[1672994906514,3.24350549,16817.0,16816.0,17.80674648]
[1672994907886,3.20786615,16817.0,16816.0,17.80674648]
[1672994922874,3.20786615,16817.0,16816.0,17.80666652]
[1672994937166,2.59620115,16817.0,16816.0,17.80666652]
[1672994946250,2.59620115,16817.0,16816.0,17.80654964]
[1672994947830,2.29620115,16817.0,16816.0,17.80654964]
[1672994949376,2.59620115,16817.0,16816.0,17.80654964]
[1672994949907,2.29620115,16817.0,16816.0,17.80654964]
[1672994950758,2.59620115,16817.0,16816.0,17.80654964]
[1672994953241,2.29620115,16817.0,16816.0,17.80654964]
[1672994955344,2.59620115,16817.0,16816.0,17.80654964]
[1672994966746,2.59620115,16817.0,16816.0,17.80644365]
[1672994970982,3.20786615,16817.0,16816.0,17.80644365]
[1672994988250,2.59620115,16817.0,16816.0,17.80644365]
[1672994990467,2.62588846,16817.0,16816.0,17.80644365]
[1672994990711,2.59620115,16817.0,16816.0,17.80635441]
[1672995003507,3.20786615,16817.0,16816.0,17.80635441]
[1672995006363,4.08703184,16817.0,16816.0,17.80635441]
[1672995006610,3.20786615,16817.0,16816.0,17.80635441]
[1672995011239,3.20786615,16817.0,16816.0,17.80624414]
[1672995012493,2.78119591,16817.0,16816.0,17.80624414]
[1672995026973,2.48119591,16817.0,16816.0,17.80624414]
[1672995027736,2.78119591,16817.0,16816.0,17.80624414]
[1672995032775,1.86953091,16817.0,16816.0,17.80624414]
[1672995033521,1.86953091,16817.0,16816.0,17.80613044]
[1672995034414,2.48119591,16817.0,16816.0,17.80613044]
[1672995036502,1.86953091,16817.0,16816.0,17.80613044]
[1672995037776,2.26620115,16817.0,16816.0,17.80613044]
[1672995038019,2.48119591,16817.0,16816.0,17.80613044]
[1672995038549,1.86953091,16817.0,16816.0,17.80613044]
[1672995040903,2.48119591,16817.0,16816.0,17.80613044]
[1672995042454,1.86953091,16817.0,16816.0,17.80613044]
[1672995042718,2.48119591,16817.0,16816.0,17.80613044]
[1672995043490,1.86953091,16817.0,16816.0,17.80613044]
[1672995044550,2.26620115,16817.0,16816.0,17.80613044]
[1672995044814,2.87786615,16817.0,16816.0,17.80613044]
[1672995045860,2.26620115,16817.0,16816.0,17.80613044]
[1672995047926,1.18916882,16817.0,16816.0,17.80613044]
[1672995049192,2.5031521,16817.0,16816.0,17.80613044]
[1672995050582,1.8914871,16817.0,16816.0,17.80613044]
[1672995050826,2.5031521,16817.0,16816.0,17.80613044]
[1672995052408,1.8914871,16817.0,16816.0,17.80613044]
[1672995054071,2.5031521,16817.0,16816.0,17.80613044]
[1672995055772,2.5031521,16817.0,16816.0,17.80606864]
[1672995057732,1.8914871,16817.0,16816.0,17.80606864]
[1672995057978,2.5031521,16817.0,16816.0,17.80606864]
[1672995058216,1.8914871,16817.0,16816.0,17.80606864]
[1672995058452,2.5031521,16817.0,16816.0,17.80606864]
[1672995058717,1.8914871,16817.0,16816.0,17.80606864]
[1672995058950,2.5031521,16817.0,16816.0,17.80606864]
[1672995060763,1.8914871,16817.0,16816.0,17.80606864]
[1672995061003,2.5031521,16817.0,16816.0,17.80606864]
[1672995061730,1.8914871,16817.0,16816.0,17.80606864]
[1672995061969,2.5031521,16817.0,16816.0,17.80606864]
[1672995062697,1.8914871,16817.0,16816.0,17.80606864]
[1672995062948,2.5031521,16817.0,16816.0,17.80606864]
[1672995063449,1.8914871,16817.0,16816.0,17.80606864]
[1672995063693,2.5031521,16817.0,16816.0,17.80606864]
[1672995063937,1.8914871,16817.0,16816.0,17.80606864]
[1672995064173,2.5031521,16817.0,16816.0,17.80606864]
[1672995064674,1.8914871,16817.0,16816.0,17.80606864]
[1672995064921,2.5031521,16817.0,16816.0,17.80606864]
[1672995066870,2.96318446,16817.0,16816.0,17.80606864]
[1672995070007,2.5031521,16817.0,16816.0,17.80606864]
[1672995075392,2.8031521,16817.0,16816.0,17.80606864]
[1672995076995,2.5031521,16817.0,16816.0,17.80606864]
[1672995077536,2.5031521,16817.0,16816.0,17.80595054]
[1672995086463,2.8031521,16817.0,16816.0,17.80595054]
[1672995086723,2.5031521,16817.0,16816.0,17.80595054]
[1672995086981,2.99318446,16817.0,16816.0,17.80595054]
[1672995088898,3.29318446,16817.0,16816.0,17.80595054]
[1672995089154,2.99318446,16817.0,16816.0,17.80595054]
[1672995089427,3.29318446,16817.0,16816.0,17.80595054]
[1672995089966,3.35470277,16817.0,16816.0,17.80595054]
[1672995098009,3.35470277,16817.0,16816.0,17.8058849]
[1672995101353,3.05470277,16817.0,16816.0,17.8058849]
[1672995101610,3.29318446,16817.0,16816.0,17.8058849]
[1672995101894,3.35470277,16817.0,16816.0,17.8058849]
[1672995102126,3.05470277,16817.0,16816.0,17.8058849]
[1672995102379,3.29318446,16817.0,16816.0,17.8058849]
[1672995102659,3.05470277,16817.0,16816.0,17.8058849]
[1672995102968,2.99318446,16817.0,16816.0,17.8058849]
[1672995103503,3.29318446,16817.0,16816.0,17.8058849]
[1672995103749,3.35470277,16817.0,16816.0,17.8058849]
[1672995106038,3.35462755,16817.0,16816.0,17.8058849]
[1672995113950,2.56459519,16817.0,16816.0,17.8058849]
[1672995114203,1.1890936,16817.0,16816.0,17.8058849]
[1672995115775,1.8007586,16817.0,16816.0,17.8058849]
[1672995123588,2.40297611,16817.0,16816.0,17.8058849]
[1672995124128,1.8007586,16817.0,16816.0,17.8058849]
[1672995125100,1.8007586,16817.0,16816.0,17.60917135]
[1672995126174,1.8007586,16817.0,16816.0,17.78481979]
[1672995127227,1.1890936,16817.0,16816.0,17.78481979]
[1672995127738,1.79123626,16817.0,16816.0,17.78481979]
[1672995127965,2.40290091,16817.0,16816.0,17.78481979]
[1672995128495,2.40290091,16817.0,16816.0,17.78473758]
[1672995129812,1.79123591,16817.0,16816.0,17.78473758]
[1672995131785,2.1501007,16817.0,16816.0,17.78473758]
[1672995133813,1.79123591,16817.0,16816.0,17.78473758]
[1672995136962,1.1890936,16817.0,16816.0,17.78473758]
[1672995137217,1.79123591,16817.0,16816.0,17.78473758]
[1672995137702,1.1890936,16817.0,16816.0,17.78473758]
[1672995139548,1.79123591,16817.0,16816.0,17.78473758]
[1672995139820,1.1890936,16817.0,16816.0,17.78473758]
[1672995142434,1.79123591,16817.0,16816.0,17.78473758]
[1672995144044,1.1890936,16817.0,16816.0,17.78473758]
[1672995146885,1.79123591,16817.0,16816.0,17.78473758]
[1672995147182,2.65856836,16817.0,16816.0,17.78473758]
[1672995147462,2.29970357,16817.0,16816.0,17.78473758]
[1672995151382,1.69756126,16817.0,16816.0,17.78473758]
[1672995152631,2.29976844,16817.0,16816.0,17.78473758]
[1672995152893,1.69756126,16817.0,16816.0,17.78461885]
[1672995154539,1.98911796,16817.0,16816.0,17.78461885]
[1672995155595,1.69756126,16817.0,16816.0,17.78461885]
[1672995156738,1.69773966,16817.0,16816.0,17.78461885]
[1672995161088,2.30940466,16817.0,16816.0,17.78461885]
[1672995161339,1.69773966,16817.0,16816.0,17.78461885]
[1672995161589,2.30940466,16817.0,16816.0,17.78461885]
[1672995161835,2.0504807,16817.0,16816.0,17.78461885]
[1672995162851,1.79171047,16817.0,16816.0,17.78461885]
[1672995176232,1.79171047,16817.0,16816.0,17.78453952]
[1672995178204,2.50878162,16817.0,16816.0,17.78453952]
[1672995181237,2.50868264,16817.0,16816.0,17.78453952]
[1672995185996,1.79161149,16817.0,16816.0,17.78453952]
[1672995188792,2.40327649,16817.0,16816.0,17.78453952]
[1672995189043,1.79161149,16817.0,16816.0,17.78453952]
[1672995189498,2.40327649,16817.0,16816.0,17.78453952]
[1672995190225,1.79161149,16817.0,16816.0,17.78453952]
[1672995192182,2.40327649,16817.0,16816.0,17.78453952]
[1672995192406,1.80083802,16817.0,16816.0,17.78453952]
[1672995192632,1.18917302,16817.0,16816.0,17.78453952]
[1672995192895,1.80083802,16817.0,16816.0,17.78453952]
[1672995193403,1.18917302,16817.0,16816.0,17.78453952]
[1672995194386,1.79157644,16817.0,16816.0,17.78453952]
[1672995194645,2.40324144,16817.0,16816.0,17.78453952]
[1672995195134,1.80083802,16817.0,16816.0,17.78453952]
[1672995201149,1.80083802,16817.0,16816.0,17.78443655]
[1672995203806,1.18917302,16817.0,16816.0,17.78443655]
[1672995204068,1.80083802,16817.0,16816.0,17.78443655]
[1672995204314,1.18917302,16817.0,16816.0,17.78443655]
[1672995204562,2.16928172,16817.0,16816.0,17.78443655]
[1672995205813,2.76230291,16817.0,16816.0,17.78443655]
[1672995206085,2.82382122,16817.0,16816.0,17.78443655]
[1672995206305,3.06230291,16817.0,16816.0,17.78443655]
[1672995207080,2.76230291,16817.0,16816.0,17.78443655]
[1672995207549,2.89830291,16817.0,16816.0,17.78943655]
[1672995210519,2.52985921,16817.0,16816.0,17.78943655]
[1672995214092,1.32517302,16817.0,16816.0,17.78943655]
[1672995216640,1.92729919,16817.0,16816.0,18.37542098]
[1672995222310,1.32517302,16817.0,16816.0,18.37542098]
[1672995225260,1.32517302,16817.0,16816.0,18.3753514]
[1672995225548,1.32517302,16817.0,16816.0,17.78936697]
[1672995229801,1.32517302,16817.0,16816.0,18.48487335]
[1672995230063,1.92749781,16817.0,16816.0,18.48487335]
[1672995234653,1.32517302,16817.0,16816.0,18.48487335]
[1672995238634,1.92747983,16817.0,16816.0,18.48487335]
[1672995241029,1.92747983,16817.0,16816.0,18.49337335]
[1672995244221,1.92735989,16817.0,16816.0,18.49337335]
[1672995256805,2.53902489,16817.0,16816.0,18.49337335]
[1672995261521,2.53826285,16817.0,16816.0,18.49337335]
[1672995263555,2.53749958,16817.0,16816.0,18.49337335]
[1672995268197,2.5376249,16817.0,16816.0,18.49337335]
[1672995268449,1.93519277,16817.0,16816.0,18.49337335]
[1672995269239,1.32352777,16817.0,16816.0,18.49337335]
[1672995269516,1.93519277,16817.0,16816.0,18.49337335]
[1672995272394,2.53771048,16817.0,16816.0,18.49337335]
[1672995273966,1.92604548,16817.0,16816.0,18.49337335]
[1672995280245,2.00903623,16817.0,16816.0,17.79786697]
[1672995280759,2.62070123,16817.0,16816.0,17.79786697]
[1672995286475,2.62070123,16817.0,16816.0,17.79779333]
[1672995288803,3.30457193,16817.0,16816.0,17.79779333]
[1672995289339,3.36609024,16817.0,16816.0,17.79779333]
[1672995290119,4.00162336,16817.0,16816.0,17.79779333]
[1672995291646,3.40172958,16817.0,16816.0,17.79779333]
[1672995292168,3.01785888,16817.0,16816.0,17.79779333]
[1672995292392,2.95634057,16817.0,16816.0,17.79779333]
[1672995295710,2.92070123,16817.0,16816.0,17.79779333]
[1672995300046,2.92070123,16817.0,16816.0,17.78929333]
[1672995302295,3.52059501,16817.0,16816.0,16.14823224]
[1672995302475,2.92070123,16817.0,16816.0,16.14823224]
[1672995302740,4.00400298,16817.0,16816.0,16.14823224]
[1672995305706,3.39812524,16817.0,16816.0,16.14823224]
[1672995305981,3.09812524,16817.0,16816.0,16.14823224]
[1672995306278,3.39812524,16817.0,16816.0,16.14823224]
[1672995316456,2.92070123,16817.0,16816.0,16.14823224]
[1672995316717,2.94991625,16817.0,16816.0,16.14823224]
[1672995320603,2.92058763,16817.0,16816.0,16.14823224]
[1672995323542,3.56210471,16817.0,16816.0,16.14823224]
[1672995324052,2.95622697,16817.0,16816.0,16.14823224]
[1672995326808,4.06744455,16817.0,16816.0,16.14823224]
[1672995328397,4.94661024,16817.0,16816.0,16.14823224]
[1672995328655,4.3407325,16817.0,16816.0,16.14823224]
[1672995329448,4.94661024,16817.0,16816.0,16.14823224]
[1672995329706,4.9109709,16817.0,16816.0,16.14823224]
[1672995330757,4.03180521,16817.0,16816.0,16.14823224]
[1672995331025,3.42592747,16817.0,16816.0,16.14823224]
[1672995331533,4.30509316,16817.0,16816.0,16.14823224]
[1672995332316,3.42592747,16817.0,16816.0,16.14823224]
[1672995332578,4.30509316,16817.0,16816.0,16.14823224]
[1672995332830,3.79975332,16817.0,16816.0,16.14823224]
[1672995333160,2.30892263,16817.0,16816.0,16.14823224]
[1672995334385,3.79396606,16817.0,16816.0,16.14823224]
[1672995334638,3.79975332,16817.0,16816.0,16.14823224]
[1672995335676,4.30509316,16817.0,16816.0,16.14823224]
[1672995335952,4.89904083,16817.0,16816.0,16.14823224]
[1672995336210,5.50491857,16817.0,16816.0,16.14823224]
[1672995341405,5.5351357,16817.0,16816.0,16.14823224]
[1672995341668,5.50491857,16817.0,16816.0,16.14823224]
[1672995341922,4.89904083,16817.0,16816.0,16.14823224]
[1672995342189,4.93468017,16817.0,16816.0,16.14823224]
[1672995342446,4.93468017,16817.0,16816.0,16.1481296]
[1672995342699,5.54055791,16817.0,16816.0,16.1481296]
[1672995343221,4.05551448,16817.0,16816.0,16.1481296]
[1672995348697,4.01987514,16817.0,16816.0,16.1481296]
[1672995349010,2.9028703,16817.0,16816.0,16.1481296]
[1672995350603,2.93197788,16817.0,16816.0,16.1481296]
[1672995353540,2.63197788,16817.0,16816.0,16.1481296]
[1672995354114,1.94646942,16817.0,16816.0,16.1481296]
[1672995355106,2.85813442,16817.0,16816.0,16.1481296]
[1672995356868,3.40886682,16817.0,16816.0,16.1481296]
[1672995359711,4.59931553,16817.0,16816.0,16.1481296]
[1672995361610,4.57020795,16817.0,16816.0,16.1481296]
[1672995362374,4.53456861,16817.0,16816.0,16.1481296]
[1672995362629,4.57020795,16817.0,16816.0,16.1481296]
[1672995364335,5.44937364,16817.0,16816.0,16.1481296]
[1672995365024,5.44937364,16817.0,16816.0,16.14805269]
[1672995367355,5.4137343,16817.0,16816.0,16.14805269]
[1672995380333,5.44321905,16817.0,16816.0,16.14805269]
[1672995381472,4.56405336,16817.0,16816.0,16.14805269]
[1672995383209,3.95817562,16817.0,16816.0,16.14805269]
[1672995386375,3.40744322,16817.0,16816.0,16.14796941]
[1672995394784,4.28660891,16817.0,16816.0,16.14796941]
[1672995398228,4.28660891,16817.0,16816.0,16.15646941]
[1672995400687,4.25712416,16817.0,16816.0,16.15646941]
[1672995404056,3.37795847,16817.0,16816.0,16.15646941]
[1672995405509,3.92547146,16817.0,16816.0,16.15646941]
[1672995407891,3.92547146,16817.0,16816.0,16.15638846]
[1672995409729,3.37795847,16817.0,16816.0,16.15638846]
[1672995414321,3.37789641,16817.0,16816.0,16.15638846]
[1672995415301,2.76623141,16817.0,16816.0,16.15638846]
[1672995415574,3.37789641,16817.0,16816.0,16.15638846]
[1672995427653,3.37789641,16817.0,16816.0,15.98074002]
[1672995428190,3.37789641,16817.0,16816.0,16.16142315]
[1672995430093,3.9254032,16817.0,16816.0,16.16142315]
[1672995430480,3.95479536,16817.0,16816.0,16.16142315]
[1672995430922,5.43983879,16817.0,16816.0,16.16142315]
[1672995431590,5.47547813,16817.0,16816.0,16.16142315]
[1672995431817,5.43983879,16817.0,16816.0,16.16142315]
[1672995433186,5.47507537,16817.0,16816.0,15.27640915]
[1672995433443,4.59631244,16817.0,16816.0,14.60275315]
[1672995433713,5.47507665,16817.0,16816.0,14.60275315]
[1672995434000,5.43943731,16817.0,16816.0,14.60275315]
[1672995434859,5.47507665,16817.0,16816.0,14.60275315]
[1672995436213,5.43943731,16817.0,16816.0,14.60275315]
[1672995441746,5.43943731,16817.0,16815.0,6e-05]
[1672995442022,3.14001541,16816.0,16815.0,6e-05]
[1672995442284,4.32935741,16816.0,16815.0,6e-05]
[1672995444102,4.32935741,16816.0,16815.0,0.00856]
[1672995444615,4.85165453,16816.0,16815.0,0.00856]
[1672995445112,4.98665453,16816.0,16815.0,0.00406]
[1672995450017,4.98665453,16816.0,16815.0,0.004]
[1672995453876,5.02229387,16816.0,16815.0,0.004]
[1672995454129,5.02229387,16816.0,16815.0,0.19201913]
[1672995454354,5.02229387,16816.0,16815.0,0.20051913]
[1672995454896,4.98665453,16816.0,16815.0,0.20051913]
[1672995460441,5.02229387,16816.0,16815.0,0.20051913]
[1672995461181,4.23524387,16816.0,16815.0,0.20051913]
[1672995463479,4.23524387,16816.0,16815.0,0.20044932]
[1672995468665,5.11400808,16816.0,16815.0,0.20044932]
[1672995470309,5.70795575,16816.0,16815.0,0.20044932]
[1672995488400,5.70795575,16816.0,16815.0,0.20034467]
[1672995503187,5.70795575,16816.0,16815.0,0.10034467]
[1672995503698,5.67231641,16816.0,16815.0,0.10034467]
[1672995504222,5.67231641,16816.0,16815.0,0.20159813]
[1672995504483,5.70795575,16816.0,16815.0,0.20159813]
[1672995510831,5.67231641,16816.0,16815.0,0.20159813]
[1672995511370,5.70795575,16816.0,16815.0,0.20159813]
[1672995516634,4.82919154,16816.0,16815.0,0.20159813]
[1672995516888,5.09651188,16816.0,16815.0,0.20159813]
[1672995517137,5.70817688,16816.0,16815.0,0.20159813]
[1672995523024,5.09651188,16816.0,16815.0,0.20159813]
[1672995524845,5.09651188,16816.0,16815.0,0.20149119]
[1672995525172,4.76328003,16816.0,16815.0,0.20149119]
[1672995529958,4.15521147,16816.0,16815.0,0.20149119]
[1672995530251,3.84658193,16816.0,16815.0,0.20149119]
[1672995542884,4.72556727,16816.0,16815.0,0.20149119]
[1672995543399,5.3194444,16816.0,16815.0,0.20149119]
[1672995543655,5.9311094,16816.0,16815.0,0.20149119]
[1672995546026,5.33723227,16816.0,16815.0,0.20149119]
[1672995546301,3.84658193,16816.0,16815.0,0.20149119]
[1672995548122,3.84658193,16816.0,16815.0,0.20141691]
[1672995560714,3.88222127,16816.0,16815.0,0.20141691]
[1672995564346,3.84658193,16816.0,16815.0,0.20141691]
[1672995564636,4.44045906,16816.0,16815.0,0.20141691]
[1672995565356,5.05212406,16816.0,16815.0,0.20141691]
[1672995566363,4.44045906,16816.0,16815.0,0.20141691]
[1672995568302,5.05212406,16816.0,16815.0,0.20141691]
[1672995571195,4.44045906,16816.0,16815.0,0.20141691]
[1672995571699,4.44045906,16816.0,16815.0,0.20130112]
[1672995571999,4.4760984,16816.0,16815.0,0.20130112]
[1672995572240,4.44045906,16816.0,16815.0,0.20130112]
[1672995574189,3.84658193,16816.0,16815.0,0.20130112]
[1672995576439,3.84658193,16816.0,16815.0,0.19616634]
[1672995590571,3.88222127,16816.0,16815.0,0.19616634]
[1672995595051,3.27622613,16816.0,16815.0,0.19616634]
[1672995595222,3.88222127,16816.0,16815.0,0.19616634]
[1672995595473,4.4760984,16816.0,16815.0,0.19616634]
[1672995597551,4.4760984,16816.0,16815.0,0.19605628]
[1672995599629,5.0877634,16816.0,16815.0,0.19605628]
[1672995599881,4.4760984,16816.0,16815.0,0.19605628]
[1672995600357,3.88222127,16816.0,16815.0,0.19605628]
[1672995600609,3.84658193,16816.0,16815.0,0.19605628]
[1672995603875,3.88222127,16816.0,16815.0,0.19605628]
[1672995605659,4.49388627,16816.0,16815.0,0.19605628]
[1672995606186,4.85057449,16816.0,16815.0,0.19605628]
[1672995606518,3.93594981,16816.0,16815.0,0.19605628]
[1672995606747,4.52982694,16816.0,16815.0,0.19605628]
[1672995608027,4.50214313,16816.0,16815.0,0.19605628]
[1672995608271,4.36614313,16816.0,16815.0,0.19605628]
[1672995608527,3.908266,16816.0,16815.0,0.19605628]
[1672995608798,4.78671123,16816.0,16815.0,0.19605628]
[1672995610101,5.32389765,16816.0,16815.0,0.19605628]
[1672995610881,4.78671123,16816.0,16815.0,0.19605628]
[1672995611149,5.43055051,16816.0,16815.0,0.19605628]
[1672995611928,4.78671123,16816.0,16815.0,0.19605628]
[1672995612457,5.4162277,16816.0,16815.0,0.19605628]
[1672995612684,0.5,16815.0,16814.0,6e-05]
[1672995612985,2.60744391,16815.0,16814.0,6e-05]
[1672995613172,3.83249725,16815.0,16814.0,6e-05]
[1672995613911,4.43913921,16815.0,16814.0,6e-05]
[1672995614198,4.25535876,16815.0,16814.0,6e-05]
[1672995614511,3.96849725,16815.0,16814.0,6e-05]
[1672995617529,3.93285791,16815.0,16814.0,6e-05]
[1672995618554,3.96849725,16815.0,16814.0,6e-05]
[1672995622148,3.96849725,16815.0,16814.0,0.19342049]
[1672995622386,3.96849725,16815.0,16814.0,0.20192049]
[1672995622605,4.56237438,16815.0,16814.0,0.20192049]
[1672995623146,4.56237438,16815.0,16814.0,0.20186049]
[1672995623398,5.20192762,16815.0,16814.0,0.20186049]
[1672995626241,5.23193094,16815.0,16814.0,0.20186049]
[1672995627008,4.5923777,16815.0,16814.0,0.20186049]
[1672995627305,5.20181488,16815.0,16814.0,0.20186049]
[1672995629107,5.20181488,16815.0,16814.0,0.0085]
[1672995630433,4.5923777,16815.0,16814.0,0.0085]
[1672995630683,5.17562112,16815.0,16814.0,0.0085]
[1672995631199,4.5923777,16815.0,16814.0,0.0085]
[1672995632968,4.55673836,16815.0,16814.0,0.0085]
[1672995633230,4.55673836,16815.0,16814.0,0.20132692]
[1672995633481,4.5923777,16815.0,16814.0,0.20121163]
[1672995633740,5.11703624,16815.0,16814.0,0.20121163]
[1672995635780,5.08703292,16815.0,16814.0,0.20121163]
[1672995637104,4.56237438,16815.0,16814.0,0.20121163]
[1672995637372,5.11785066,16815.0,16814.0,0.20121163]
[1672995639454,4.50618566,16815.0,16814.0,0.20121163]
[1672995639987,5.11785066,16815.0,16814.0,0.20121163]
[1672995643911,5.08221132,16815.0,16814.0,0.20121163]
[1672995644413,5.96065655,16815.0,16814.0,0.20121163]
[1672995645722,5.99629589,16815.0,16814.0,0.20121163]
[1672995645946,6.0259327,16815.0,16814.0,0.20121163]
[1672995648381,5.47045642,16815.0,16814.0,0.20121163]
[1672995649664,5.33445642,16815.0,16814.0,0.20121163]
[1672995649932,5.47045642,16815.0,16814.0,0.20121163]
[1672995655512,5.43481708,16815.0,16814.0,0.20121163]
[1672995656784,5.43481708,16815.0,16814.0,0.20109795]
[1672995668399,4.54681058,16815.0,16810.0,0.40175616]
[1672995668702,3.13090511,16814.0,16810.0,0.40175616]
[1672995668958,3.82923193,16813.0,16810.0,0.40175616]
[1672995669227,0.911665,16812.0,16810.0,0.40175616]
[1672995669510,2.284544,16811.0,16810.0,0.00215616]
[1672995670556,2.284544,16811.0,16810.0,0.01065616]
[1672995671035,2.64503708,16811.0,16810.0,0.01065616]
[1672995671294,3.24718858,16811.0,16810.0,0.01065616]
[1672995671873,3.38318858,16811.0,16810.0,0.01065616]
[1672995676418,3.38318858,16811.0,16810.0,0.01059616]
[1672995679769,3.38318858,16811.0,16810.0,0.00209616]
[1672995681287,3.77415756,16811.0,16810.0,0.00209616]
[1672995684591,3.63815756,16811.0,16810.0,0.00209616]
[1672995685081,3.77415756,16811.0,16810.0,0.00209616]
[1672995685339,3.63815756,16811.0,16810.0,0.00209616]
[1672995685622,3.77415756,16811.0,16810.0,0.00209616]
[1672995686639,3.17200606,16811.0,16810.0,0.00209616]
[1672995686892,3.7727591,16811.0,16810.0,0.00209616]
[1672995687604,4.0727591,16811.0,16810.0,0.00209616]
[1672995687824,3.7727591,16811.0,16810.0,0.00209616]
[1672995688332,4.0727591,16811.0,16810.0,0.00209616]
[1672995688553,3.33600606,16811.0,16810.0,0.00209616]
[1672995688806,4.0737591,16811.0,16810.0,0.00209616]
[1672995689044,3.9367591,16811.0,16810.0,0.00209616]
[1672995689269,3.47200606,16811.0,16810.0,0.00202797]
[1672995689522,4.0727591,16811.0,16810.0,0.00202797]
[1672995689801,4.6844241,16811.0,16810.0,0.00202797]
[1672995691314,4.0727591,16811.0,16810.0,0.00163509]
[1672995691843,4.6844241,16811.0,16810.0,0.00163509]
[1672995692321,4.0727591,16811.0,16810.0,0.00163509]
[1672995692801,3.17200606,16811.0,16810.0,0.00163509]
[1672995693050,4.37449795,16811.0,16810.0,0.00163509]
[1672995693299,3.77374491,16811.0,16810.0,0.00163509]
[1672995693797,4.07374491,16811.0,16810.0,0.00163509]
[1672995694544,3.77374491,16811.0,16810.0,0.00163509]
[1672995696706,4.07374491,16811.0,16810.0,0.00163509]
[1672995697432,3.77374491,16811.0,16810.0,0.00163509]
[1672995697707,4.07374491,16811.0,16810.0,0.00163509]
[1672995698355,3.47200606,16811.0,16810.0,0.00163509]
[1672995698589,4.0727591,16811.0,16810.0,0.00163509]
[1672995702611,3.47200606,16811.0,16810.0,0.00163509]
[1672995702857,3.17200606,16811.0,16810.0,0.00163509]
[1672995703829,4.0727591,16811.0,16810.0,0.00163509]
[1672995704077,3.7727591,16811.0,16810.0,0.00163509]
[1672995704334,3.17200606,16811.0,16810.0,0.00163509]
[1672995708583,3.7727591,16811.0,16810.0,0.00163509]
[1672995708841,3.17200606,16811.0,16810.0,0.00163509]
[1672995709328,3.7727591,16811.0,16810.0,0.00163509]
[1672995709582,2.81151298,16811.0,16810.0,0.00163509]
[1672995713414,3.41381739,16811.0,16810.0,0.00163509]
[1672995714351,3.41381739,16811.0,16810.0,0.00154866]
[1672995725976,2.81151298,16811.0,16810.0,0.00154866]
[1672995726218,3.1612828,16811.0,16810.0,0.00154866]
[1672995726472,3.76337753,16811.0,16810.0,0.00154866]
[1672995727731,3.1612828,16811.0,16810.0,0.00154866]
[1672995727961,3.7633895,16811.0,16810.0,0.00154866]
[1672995728207,3.76339292,16811.0,16810.0,0.00154866]